[Event "BAN-chT SAIF POWERTEC 2020"]
[Site "Dhaka"]
[Date "2021.03.28"]
[Round "10.12"]
[White "Asif, Mahmud"]
[Black "Ikramul, Haq Siam"]
[Result "1/2-1/2"]
[ECO "D37"]
[WhiteElo "1907"]
[BlackElo "2037"]
[Annotator "NA"]
[PlyCount "63"]
[EventDate "2021.03.19"]
[EventType "team-tourn"]
[EventCountry "BAN"]
[SourceTitle "playchess.com"]
[Source "ChessBase"]
[SourceQuality "1"]
[TimeControl "5400+30"]

1. d4 {[%emt 1:30:30]} d5 {[%emt 1:30:30]} 2. c4 {[%emt 0:00:30]} e6 {[%emt 0:00:30]} 3. Nc3 {[%emt 0:00:30]} a6 {[%emt 0:00:30]} 4. cxd5 {[%emt 0:00:30]} exd5 {[%emt 0:00:30]} 5. Nf3 {[%emt 0:00:30]} Nf6 {[%emt 0:00:30]} 6. Bg5 {[%emt 0:00:30]} Be7 {[%emt 0:00:30]} 7. e3 {[%emt 0:00:30]} c6 {[%emt 0:00:30]} 8. Bd3 {[%emt 0:00:30]} Bg4 {[%emt 0:00:30]} 9. Qb3 {[%emt 0:00:30]} Bc8 {[%emt 0:00:30]} 10. O-O {[%emt 0:00:30]} Nbd7 {[%emt 0:00:30]} 11. Qc2 {[%emt 0:00:30]} h6 {[%emt 0:00:30]} 12. Bh4 {[%emt 0:00:30]} Nh5 {[%emt 0:00:30]} 13. Bxe7 {[%emt 0:00:30]} Qxe7 {[%emt 0:00:30]} 14. e4 {[%emt 0:00:30]} dxe4 {[%emt 0:00:30]} 15. Nxe4 {[%emt 0:00:30]} O-O {[%emt 0:00:30]} 16. Rfe1 {[%emt 0:00:30]} Ndf6 {[%emt 0:00:30]} 17. Nc5 {[%emt 0:00:30]} Qc7 {[%emt 0:00:30]} 18. h3 {[%emt 0:00:30]} Nf4 {[%emt 0:00:30]} 19. Bc4 {[%emt 0:00:30]} b6 {[%emt 0:00:30]} 20. Ne4 {[%emt 0:00:30]} Nxe4 {[%emt 0:00:30]} 21. Qxe4 {[%emt 0:00:30]} Be6 {[%emt 0:00:30]} 22. Bxe6 {[%emt 0:00:30]} Nxe6 {[%emt 0:00:30]} 23. Rac1 {[%emt 0:00:30]} Rac8 {[%emt 0:00:30]} 24. b4 {[%emt 0:00:30]} Rfd8 {[%emt 0:00:30]} 25. g3 {[%emt 0:00:30]} Qd6 {[%emt 0:00:30]} 26. a3 {[%emt 0:00:30]} a5 {[%emt 0:00:30]} 27. bxa5 {[%emt 0:00:30]} bxa5 28. Rc3 {[%emt 0:00:30]} Nxd4 {[%emt 0:01:00]} 29. Nxd4 {[%emt 0:00:30]} Qxd4 {[%emt 0:00:30]} 30. Qxd4 {[%emt 0:00:30]} Rxd4 {[%emt 0:00:30]} 31. Re5 {[%emt 0:00:30]} a4 {[%emt 0:00:30]} 32. Rec5 {[%emt 0:00:30]} 1/2-1/2

[Event "BAN-chT SAIF POWERTEC 2020"]
[Site "Dhaka"]
[Date "2021.03.29"]
[Round "11.3"]
[White "Mollah Abdullah, Al Rakib"]
[Black "Reefat, Bin-Sattar"]
[Result "1/2-1/2"]
[ECO "D22"]
[WhiteElo "2463"]
[BlackElo "2409"]
[Annotator "ChessBase"]
[PlyCount "62"]
[EventDate "2021.03.19"]
[EventType "team-tourn"]
[EventCountry "BAN"]
[SourceTitle "playchess.com"]
[Source "ChessBase"]
[SourceQuality "1"]
[TimeControl "5400+30"]

1. d4 {[%emt 0:00:00]} d5 {[%emt 0:09:27]} 2. c4 {[%emt 0:00:16]} dxc4 {[%emt 0:00:20]} 3. Nf3 {[%emt 0:00:22]} a6 {[%emt 0:00:25]} 4. e3 {[%emt 0:05:59]} Bg4 {[%emt 0:04:38]} 5. Bxc4 {[%emt 0:01:16]} e6 {[%emt 0:00:04]} 6. O-O {[%emt 0:03:20]} Nf6 {[%emt 0:13:00]} 7. b3 {[%emt 0:01:31]} Nc6 {[%emt 0:06:55]} 8. Bb2 {[%emt 0:02:21]} Bd6 {[%emt 0:01:26]} 9. Be2 {[%emt 0:04:49]} O-O {[%emt 0:06:52]} 10. Nbd2 {[%emt 0:01:24]} Re8 {[%emt 0:17:41]} 11. Ne5 {[%emt 0:04:16]} Bxe5 {[%emt 0:01:41]} 12. Bxg4 {[%emt 0:09:02]} Nxg4 {[%emt 0:05:31]} 13. Qxg4 {[%emt 0:00:03]} f5 {[%emt 0:00:02]} 14. Qe2 {[%emt 0:05:54]} Bf6 {[%emt 0:00:04]} 15. Rac1 {[%emt 0:03:43]} e5 {[%emt 0:09:39]} 16. dxe5 {[%emt 0:02:41]} Nxe5 {[%emt 0:02:39]} 17. Bxe5 {[%emt 0:07:13]} Bxe5 {[%emt 0:00:09]} 18. Nf3 {[%emt 0:01:00]} Bd6 {[%emt 0:00:18]} 19. Qc4+ {[%emt 0:08:08]} Kh8 {[%emt 0:00:34]} 20. Rfd1 {[%emt 0:00:46]} Qf6 {[%emt 0:02:06]} 21. Qd5 {[%emt 0:01:04]} Rab8 {[%emt 0:01:54]} 22. Rd4 {[%emt 0:01:32]} Re7 {[%emt 0:03:23]} 23. Qc4 {[%emt 0:06:13]} Rbe8 {[%emt 0:02:11]} 24. g3 {[%emt 0:01:54]} g6 {[%emt 0:01:12]} 25. Qd3 {[%emt 0:02:33]} Kg7 {[%emt 0:06:03]} 26. Kg2 {[%emt 0:07:31]} Re4 {[%emt 0:03:12]} 27. Rd5 {[%emt 0:02:54]} R4e6 {[%emt 0:00:08]} 28. Rd1 {[%emt 0:02:06]} Qb2 {[%emt 0:01:11]} 29. Rd2 {[%emt 0:00:30]} Qf6 {[%emt 0:00:06]} 30. Rd1 {[%emt 0:00:45]} Qb2 {[%emt 0:00:23]} 31. Rd2 {[%emt 0:00:42]} Qf6 {[%emt 0:00:07]} 1/2-1/2

[Event "BAN-chT SAIF POWERTEC 2020"]
[Site "Dhaka"]
[Date "2021.03.29"]
[Round "11.4"]
[White "Mohammed Abdul, Malek"]
[Black "Rahman, Ziaur"]
[Result "0-1"]
[ECO "D48"]
[WhiteElo "2134"]
[BlackElo "2419"]
[Annotator "NA"]
[PlyCount "66"]
[EventDate "2021.03.19"]
[EventType "team-tourn"]
[EventCountry "BAN"]
[SourceTitle "playchess.com"]
[Source "ChessBase"]
[SourceQuality "1"]
[TimeControl "5400+30"]

{[%evp 18,58,9,-15,-5,-10,-19,-18,32767,-7,10,-11,0,-56,-45,-31,-42,-61,-43,-59,-43,-62,-71,-106,-111,-171,-182,-172,-195,-210,-235,-265,-249,-270,-327,-315,-345,-310,-154,-166,-150,-193,-229]} 1. d4 {[%emt 0:00:00]} d5 {[%emt 0:00:25]} 2. Nf3 {[%emt 0:00:00]} Nf6 {[%emt 0:00:17]} 3. c4 {[%emt 0:00:39]} e6 {[%emt 0:00:10]} 4. Nc3 {[%emt 0:00:06]} c6 {[%emt 0:00:45]} 5. e3 {[%emt 0:00:12]} Nbd7 {[%emt 0:00:06]} 6. Bd3 {[%emt 0:00:08]} dxc4 {[%emt 0:00:26]} 7. Bxc4 {[%emt 0:00:03]} b5 {[%emt 0:00:06]} 8. Bd3 {[%emt 0:00:44]} Bb7 {[%emt 0:00:06]} 9. O-O {[%emt 0:02:58]} a6 {[%emt 0:02:30]} 10. a4 {[%emt 0:07:45]} b4 {[%emt 0:02:04]} 11. Ne4 {[%emt 0:00:25]} c5 {[%emt 0:00:30]} 12. Nxf6+ {[%emt 0:01:14]} Nxf6 {[%emt 0:01:01]} 13. a5 {[%emt 0:03:06]} cxd4 {[%emt 0:01:13]} 14. Qa4+ {[%emt 0:03:17]} Qd7 {[%emt 0:03:45]} 15. Nxd4 {[%emt 0:01:23]} e5 {[%emt 0:01:38]} 16. Qxd7+ {[%emt 0:03:07]} Nxd7 {[%emt 0:00:09]} 17. Ne2 {[%emt 0:03:38]} Nc5 {[%emt 0:13:01]} 18. Bc4 {[%emt 0:01:08]} Rd8 {[%emt 0:00:57]} 19. Ng3 {[%emt 0:02:30]} h5 {[%emt 0:01:19]} 20. f3 {[%emt 0:09:01]} h4 {[%emt 0:01:06]} 21. Ne2 {[%emt 0:00:11]} (21. Ne4 $17 {was called for.}) 21... Bd5 {[%emt 0:02:08]} 22. Bxd5 {[%emt 0:02:00]} Rxd5 {[%emt 0:01:45]} 23. h3 {[%emt 0:15:04]} Nb3 {[%emt 0:01:00]} 24. e4 {[%emt 0:03:35]} Rc5 {[%emt 0:01:15]} ({Not} 24... Rxa5 25. Rxa5 Nxa5 26. Rd1 $17) 25. Rb1 {[%emt 0:03:32]} Rc2 {[%emt 0:02:26]} ({Not} 25... Rxa5 26. Be3 $17) 26. Kf2 {[%emt 0:05:49] [#]} Bc5+ $1 {[%emt 0:01:59]} ({Not} 26... Nxa5 27. b3 $17) 27. Be3 {[%emt 0:00:10]} Bxe3+ {[%emt 0:02:22]} (27... Nd4 $19 {has better winning chances.} 28. Rfe1 b3) 28. Kxe3 {[%emt 0:00:02]} Rh6 {[%emt 0:01:23]} ({Not} 28... Nxa5 29. Rfc1 $15) 29. Rfd1 {[%emt 0:16:24]} Nxa5 $19 {[%emt 0:08:24]} 30. Rd5 {[%emt 0:04:15]} Nc4+ {[%emt 0:00:34]} 31. Kd3 {[%emt 0:00:27]} b3 {[%emt 0:00:35]} 32. Nc1 {[%emt 0:04:16]} Rc6 {[%emt 0:01:58]} 33. Nxb3 {[%emt 0:03:05]} Nxb2+ {[%emt 0:49:07]} 0-1

[Event "BAN-chT SAIF POWERTEC 2020"]
[Site "Dhaka"]
[Date "2021.03.29"]
[Round "11.5"]
[White "Chowdhury, Sohel"]
[Black "Aronyak Ghosh"]
[Result "0-1"]
[ECO "B04"]
[WhiteElo "2149"]
[BlackElo "2436"]
[Annotator "NA"]
[PlyCount "102"]
[EventDate "2021.03.19"]
[EventType "team-tourn"]
[EventCountry "BAN"]
[SourceTitle "playchess.com"]
[Source "ChessBase"]
[SourceQuality "1"]
[TimeControl "5400+30"]

{[%evp 8,102,55,45,56,34,41,32767,26,12,22,0,0,-62,-52,32767,-52,-86,-66,-62,-73,-71,-70,-64,-49,-52,-52,-60,-76,-80,-73,-87,-77,-92,-65,-71,-62,-76,-75,-77,-85,32767,-204,-209,-157,-183,-174,-156,32767,-153,-135,-137,-164,32767,32767,32767,32767,32767,32767,32767,32767,32767,32767,32767,32767,32767,32767,32767,32767,32767,32767,32767,32767,32767,32767,32767,32767,32767,32767,32767,32767,32767,32767,32767,32767,32767,32767,32767,32767,32767,32767,-5908,-29976,32767,32767,32767,-29978]} 1. e4 {[%emt 0:00:00]} Nf6 {[%emt 0:03:19]} 2. e5 {[%emt 0:00:52]} Nd5 {[%emt 0:00:09]} 3. d4 {[%emt 0:00:11]} d6 {[%emt 0:00:05]} 4. Nf3 {[%emt 0:04:15]} dxe5 {[%emt 0:00:25]} 5. Nxe5 {[%emt 0:00:07]} c6 {[%emt 0:00:05]} 6. c3 {[%emt 0:00:56]} g6 {[%emt 0:02:41]} 7. Qf3 {[%emt 0:01:44]} Be6 {[%emt 0:01:32]} 8. Nd2 {[%emt 0:02:44]} Nd7 {[%emt 0:04:58]} 9. Ndc4 {[%emt 0:08:27]} Bg7 {[%emt 0:01:50]} 10. Bd3 {[%emt 0:01:42]} ({White should play} 10. Be2 $11) 10... Nxe5 {[%emt 0:05:23]} 11. Nxe5 {[%emt 0:00:25]} O-O {[%emt 0:00:20]} 12. Qe2 {[%emt 0:00:45] [#]} c5 $1 {[%emt 0:01:49]} 13. Nf3 {[%emt 1:14:22]} cxd4 {[%emt 1:13:54]} 14. Nxd4 {[%emt 0:00:30] [#]} Nb4 $1 {[%emt 0:00:30]} 15. O-O {[%emt 0:00:30]} Nxd3 {[%emt 0:00:00]} 16. Qxd3 {[%emt 0:00:30]} Rc8 {[%emt 0:01:00]} 17. Re1 {[%emt 0:00:30]} Bc4 {[%emt 0:00:30]} 18. Qe4 {[%emt 0:00:30]} e5 {[%emt 0:00:30]} 19. Nf3 {[%emt 0:00:30]} Bd5 {[%emt 0:00:30]} 20. Qe2 {[%emt 0:00:30]} e4 {[%emt 0:00:30]} 21. Nd4 {[%emt 0:00:30]} f5 {[%emt 0:00:30]} 22. Nc2 {[%emt 0:00:30]} Bc4 {[%emt 0:00:30]} 23. Qe3 {[%emt 0:00:30]} a5 {[%emt 0:00:30]} 24. Na3 {[%emt 0:00:30]} Bd3 {[%emt 0:00:30]} 25. Qg3 {[%emt 0:00:30]} b5 {[%emt 0:00:30]} 26. Bg5 {[%emt 0:00:30]} Qb6 {[%emt 0:00:30]} 27. Rad1 {[%emt 0:00:30]} b4 {[%emt 0:00:30]} 28. Nb1 {[%emt 0:00:30]} Qb5 {[%emt 0:00:00]} 29. h4 {[%emt 0:00:00]} h6 {[%emt 0:01:00]} 30. Bf4 {[%emt 0:01:00]} Kh7 {[%emt 0:00:30]} 31. Bd6 {[%emt 0:00:30]} Rfd8 {[%emt 0:00:30]} 32. cxb4 {[%emt 0:00:00]} axb4 {[%emt 0:00:30]} 33. a3 {[%emt 0:01:00]} Bc2 {[%emt 0:00:30]} 34. Rc1 {[%emt 0:00:30]} b3 {[%emt 0:00:30]} 35. Nc3 {[%emt 0:00:30]} Rxc3 {[%emt 0:00:30]} 36. bxc3 {[%emt 0:00:00]} b2 {[%emt 0:00:30]} 37. Bb4 {[%emt 0:01:00]} bxc1=Q {[%emt 0:00:00]} 38. Rxc1 {[%emt 0:00:30]} Bd3 {[%emt 0:00:00]} 39. h5 {[%emt 0:00:30]} g5 {[%emt 0:01:30]} 40. Qc7 {[%emt 0:01:00]} Qd7 {[%emt 0:00:30]} 41. Qb6 {[%emt 0:00:30]} Rc8 {[%emt 0:00:30]} 42. a4 {[%emt 0:00:30]} Rc6 {[%emt 0:00:30]} 43. Qb8 {[%emt 0:00:30]} f4 {[%emt 0:00:30]} 44. a5 {[%emt 0:00:30]} Qg4 {[%emt 0:00:30]} 45. Re1 {[%emt 0:00:30]} f3 {[%emt 0:00:00]} 46. Qg3 {[%emt 0:00:30]} Qxg3 47. fxg3 g4 {[%emt 0:01:30]} 48. gxf3 {[%emt 0:00:00]} gxf3 {[%emt 0:00:30]} 49. Kf2 {[%emt 0:02:00]} Bxc3 {[%emt 0:00:00]} 50. Bxc3 {[%emt 0:00:00]} Rxc3 {[%emt 0:00:00]} 51. Ra1 {[%emt 0:01:00]} Rc2+ {[%emt 0:01:30]} 0-1

[Event "BAN-chT SAIF POWERTEC 2020"]
[Site "Dhaka"]
[Date "2021.03.29"]
[Round "11.6"]
[White "Subhayan Kundu"]
[Black "Puranik, Abhimanyu"]
[Result "1/2-1/2"]
[ECO "C54"]
[WhiteElo "2305"]
[BlackElo "2584"]
[Annotator "ChessBase"]
[PlyCount "117"]
[EventDate "2021.03.19"]
[EventType "team-tourn"]
[EventCountry "BAN"]
[SourceTitle "playchess.com"]
[Source "ChessBase"]
[SourceQuality "1"]
[TimeControl "5400+30"]

1. e4 {[%emt 0:03:15]} e5 {[%emt 0:00:00]} 2. Nf3 {[%emt 0:00:15]} Nc6 {[%emt 0:00:00]} 3. Bc4 {[%emt 0:00:05]} Bc5 {[%emt 0:00:10]} 4. c3 {[%emt 0:00:09]} Nf6 {[%emt 0:00:11]} 5. d3 {[%emt 0:00:06]} d6 {[%emt 0:00:35]} 6. Nbd2 {[%emt 0:00:13]} a6 {[%emt 0:00:38]} 7. Bb3 {[%emt 0:00:06]} Ba7 {[%emt 0:00:49]} 8. h3 {[%emt 0:00:19]} Be6 {[%emt 0:01:20]} 9. Nf1 {[%emt 0:00:46]} d5 {[%emt 0:03:15]} 10. Qe2 {[%emt 0:02:54]} d4 {[%emt 0:09:17]} 11. Bxe6 {[%emt 0:05:40]} fxe6 {[%emt 0:00:03]} 12. cxd4 {[%emt 0:04:12]} Nxd4 {[%emt 0:03:53]} 13. Nxd4 {[%emt 0:00:02]} Bxd4 {[%emt 0:00:47]} 14. Be3 {[%emt 0:03:33]} Qd6 {[%emt 0:01:57]} 15. Bxd4 {[%emt 0:09:55]} Qxd4 {[%emt 0:00:18]} 16. Ne3 {[%emt 0:00:32]} O-O-O {[%emt 0:03:06]} 17. O-O-O {[%emt 1:06:28]} Rd6 {[%emt 1:12:11]} 18. Kb1 {[%emt 0:00:00]} Rhd8 {[%emt 0:00:30]} 19. Nc4 {[%emt 0:01:00]} R6d7 {[%emt 0:00:30]} 20. Rhe1 {[%emt 0:00:30]} Qc5 {[%emt 0:00:30]} 21. Rd2 {[%emt 0:00:30]} Rd4 {[%emt 0:00:00]} 22. Rc1 {[%emt 0:00:30]} Kb8 {[%emt 0:01:00]} 23. Na3 {[%emt 0:00:30]} Qb6 {[%emt 0:00:00]} 24. Nc4 {[%emt 0:00:00]} Qb5 {[%emt 0:01:00]} 25. Na3 {[%emt 0:01:00]} Qd7 {[%emt 0:00:30]} 26. Nc4 {[%emt 0:00:30]} Qb5 {[%emt 0:00:00]} 27. Na3 {[%emt 0:00:30]} Qe8 {[%emt 0:01:00]} 28. Nc4 {[%emt 0:00:30]} Nd7 {[%emt 0:00:30]} 29. Qe3 {[%emt 0:00:30]} Qf8 {[%emt 0:00:30]} 30. g3 {[%emt 0:00:30]} Qf6 {[%emt 0:00:30]} 31. f4 {[%emt 0:00:30]} exf4 {[%emt 0:00:00]} 32. gxf4 {[%emt 0:00:30]} e5 {[%emt 0:00:00]} 33. Rf2 {[%emt 0:00:30]} Qe7 {[%emt 0:01:30]} 34. Rfc2 {[%emt 0:00:30]} c6 {[%emt 0:00:30]} 35. Na5 {[%emt 0:00:30]} Ka8 {[%emt 0:00:00]} 36. Rxc6 {[%emt 0:00:30]} bxc6 {[%emt 0:00:00]} 37. Nxc6 {[%emt 0:00:30]} Qe8 {[%emt 0:00:00]} 38. fxe5 {[%emt 0:00:00]} Nxe5 {[%emt 0:02:00]} 39. Nxd4 {[%emt 0:00:00]} Qd7 {[%emt 0:00:30]} 40. Rc5 {[%emt 0:00:00]} Qxd4 {[%emt 0:00:00]} 41. Qxd4 {[%emt 0:00:00]} Rxd4 {[%emt 0:00:00]} 42. Rxe5 {[%emt 0:00:00]} Rxd3 {[%emt 0:01:30]} 43. h4 {[%emt 0:00:00]} Rh3 {[%emt 0:00:00]} 44. h5 {[%emt 0:00:00]} Kb7 {[%emt 0:00:00]} 45. Kc2 {[%emt 0:00:00]} Kb6 {[%emt 0:00:00]} 46. b4 {[%emt 0:04:30]} g6 {[%emt 0:00:00]} 47. hxg6 {[%emt 0:00:00]} hxg6 {[%emt 0:00:00]} 48. a4 {[%emt 0:00:00]} Rg3 {[%emt 0:00:00]} 49. Re6+ {[%emt 0:00:00]} Kb7 {[%emt 0:00:00]} 50. a5 {[%emt 0:02:00]} g5 {[%emt 0:00:00]} 51. Rb6+ {[%emt 0:00:00]} Ka7 {[%emt 0:00:00]} 52. Rg6 {[%emt 0:00:00]} Re3 {[%emt 0:00:19]} 53. Rg7+ {[%emt 0:00:00]} Kb8 {[%emt 0:00:08]} 54. Re7 {[%emt 0:00:00]} g4 {[%emt 0:00:43]} 55. Kd2 {[%emt 0:00:00]} Rb3 {[%emt 0:00:08]} 56. e5 {[%emt 0:00:08]} g3 {[%emt 0:01:03]} 57. Rg7 {[%emt 0:00:18]} Kc8 {[%emt 0:00:27]} 58. Kc2 {[%emt 0:01:44]} Rxb4 {[%emt 0:00:43]} 59. Rxg3 {[%emt 0:02:20]} 1/2-1/2

[Event "BAN-chT SAIF POWERTEC 2020"]
[Site "Dhaka"]
[Date "2021.03.29"]
[Round "11.8"]
[White "Asif, Mahmud"]
[Black "Chatterjee, Debaraj"]
[Result "0-1"]
[ECO "E10"]
[WhiteElo "1907"]
[BlackElo "2223"]
[Annotator "NA"]
[PlyCount "90"]
[EventDate "2021.03.19"]
[EventType "team-tourn"]
[EventCountry "BAN"]
[SourceTitle "playchess.com"]
[Source "ChessBase"]
[SourceQuality "1"]
[TimeControl "5400+30"]

1. d4 {[%emt 0:00:00]} Nf6 {[%emt 0:02:00]} 2. c4 {[%emt 0:00:17]} c5 {[%emt 0:00:19]} 3. d5 {[%emt 0:00:45]} e6 {[%emt 0:00:24]} 4. Nf3 {[%emt 0:01:39]} exd5 {[%emt 0:00:30]} 5. cxd5 {[%emt 0:00:14]} d6 {[%emt 0:00:16]} 6. e4 {[%emt 0:02:55]} g6 {[%emt 0:01:50]} 7. Bd3 {[%emt 0:01:27]} Bg7 {[%emt 0:00:21]} 8. O-O {[%emt 0:02:03]} O-O {[%emt 0:00:08]} 9. h3 {[%emt 0:01:55]} b5 {[%emt 0:03:02] 9...c4 deserves study.} 10. Re1 {[%emt 0:02:51]} Bd7 {[%emt 0:09:10] [#]} (10... Ba6 $14) 11. Bf4 $146 {[%emt 0:05:45]} ({Predecessor:} 11. a4 bxa4 12. Nc3 Nh5 13. Bg5 Bf6 14. Bh6 Bg7 15. Bg5 Bf6 16. Be3 Re8 17. g4 {1-0 (31) Yakovich,Y (2585)-Wojtaszek,R (2553) Moscow 2005}) 11... Qb6 {[%emt 0:01:00]} 12. Qc2 {[%emt 0:05:54]} Na6 {[%emt 0:01:01]} 13. a3 {[%emt 0:03:49]} (13. Bf1 $1 $14) 13... c4 {[%emt 0:12:36]} 14. Bf1 {[%emt 0:00:47]} Rac8 {[%emt 0:02:26]} 15. Nbd2 {[%emt 0:05:59]} (15. a4 $1 $11) 15... Nh5 {[%emt 0:06:21]} (15... Nc5 $15) 16. Be3 {[%emt 0:01:18]} Qb7 {[%emt 0:02:46]} 17. Bd4 {[%emt 0:06:27]} ({White should try} 17. a4 $14) 17... Bxd4 {[%emt 0:01:46]} 18. Nxd4 {[%emt 0:00:14]} Nf4 {[%emt 0:01:08]} (18... Qb6 $11 {remains equal.} 19. N2f3 Nc5) 19. N2f3 {[%emt 0:10:20]} Nc5 {[%emt 0:19:18]} 20. Qd2 {[%emt 0:07:48]} Nfd3 {[%emt 0:01:33]} 21. Bxd3 {[%emt 0:12:01]} Nxd3 {[%emt 0:00:05]} 22. Re2 $11 {[%emt 0:01:28]} f6 {[%emt 0:03:29]} 23. b3 {[%emt 0:02:43]} Ne5 {[%emt 0:02:37]} 24. bxc4 {[%emt 0:02:58]} Rxc4 {[%emt 0:04:29]} 25. Rc1 {[%emt 0:05:27]} Rfc8 {[%emt 0:01:50]} 26. Rxc4 {[%emt 0:00:28]} bxc4 {[%emt 0:05:50]} 27. Qc3 {[%emt 0:04:50]} Qb1+ {[%emt 0:07:02]} 28. Re1 {[%emt 0:02:56]} Qd3 {[%emt 0:00:24]} 29. Qxd3 {[%emt 0:05:18]} Nxd3 {[%emt 0:01:40]} 30. Rb1 {[%emt 0:00:44]} c3 {[%emt 0:01:40]} 31. Nc2 {[%emt 0:00:39]} Ba4 {[%emt 0:00:54]} 32. Nfd4 {[%emt 0:00:23]} Re8 {[%emt 0:02:48]} 33. f3 {[%emt 0:00:22]} f5 {[%emt 0:00:15]} 34. exf5 {[%emt 0:01:54]} Bxc2 {[%emt 0:00:19]} 35. Nxc2 {[%emt 0:00:12]} Re2 {[%emt 0:00:07]} 36. Nd4 {[%emt 0:00:22]} Rb2 {[%emt 0:01:22]} 37. Rd1 {[%emt 0:00:50]} Rd2 {[%emt 0:01:05]} 38. Rb1 {[%emt 0:01:02]} Nc5 {[%emt 0:00:44]} 39. Rb8+ {[%emt 0:01:30]} Kg7 {[%emt 0:02:12]} 40. Ne6+ {[%emt 0:00:23]} Nxe6 {[%emt 0:00:25]} 41. dxe6 {[%emt 0:00:47]} c2 {[%emt 0:00:23]} 42. Rb7+ {[%emt 0:00:20]} Kf6 {[%emt 0:02:01]} 43. Rf7+ {[%emt 0:00:27]} Kg5 {[%emt 0:00:53]} 44. h4+ {[%emt 0:00:51]} Kf4 {[%emt 0:00:48]} 45. fxg6+ {[%emt 0:00:02]} Kg3 {[%emt 0:00:01]} 0-1

[Event "BAN-chT SAIF POWERTEC 2020"]
[Site "Dhaka"]
[Date "2021.03.29"]
[Round "11.10"]
[White "Zia, Tahsin Tajwar"]
[Black "Neelotpal, Das"]
[Result "0-1"]
[ECO "D02"]
[WhiteElo "2092"]
[BlackElo "2425"]
[Annotator "NA"]
[PlyCount "92"]
[EventDate "2021.03.19"]
[EventType "team-tourn"]
[EventCountry "BAN"]
[SourceTitle "playchess.com"]
[Source "ChessBase"]
[SourceQuality "1"]
[TimeControl "5400+30"]

1. d4 {[%emt 0:00:00]} Nf6 {[%emt 0:00:00]} 2. Bf4 {[%emt 0:00:00]} d5 {[%emt 0:00:00]} 3. e3 {[%emt 0:00:02]} e6 {[%emt 0:00:00]} 4. Nd2 {[%emt 0:00:21]} Bd6 {[%emt 0:00:05]} 5. Bg3 {[%emt 0:00:18]} O-O {[%emt 0:00:07]} 6. Ngf3 {[%emt 0:00:28]} c5 {[%emt 0:00:04]} 7. c3 {[%emt 0:01:54]} Qc7 {[%emt 0:00:08]} 8. Bd3 {[%emt 0:00:24] 8.dxc5 deserves study.} Nbd7 {[%emt 0:00:11]} 9. O-O {[%emt 0:00:07]} Bxg3 {[%emt 0:01:45]} 10. hxg3 {[%emt 0:00:06]} b6 {[%emt 0:00:02]} 11. Rc1 {[%emt 0:03:54]} Bb7 {[%emt 0:01:48]} 12. c4 {[%emt 0:00:29] [#]} Rac8 $146 {[%emt 0:05:32]} ({Predecessor:} 12... dxc4 13. Nxc4 Rad8 14. Qe2 Qb8 15. Rfd1 h6 16. a3 cxd4 17. Nxd4 Nc5 18. Bb1 Rd7 {0-1 (74) Norowitz,Y (2420)-Svane,R (2613) Chess.com INT 2021}) 13. cxd5 {[%emt 0:06:52]} exd5 {[%emt 0:00:46]} 14. dxc5 {[%emt 0:35:24]} bxc5 {[%emt 0:00:37]} 15. Qa4 {[%emt 0:00:09]} Qb6 {[%emt 0:07:14]} 16. Qh4 {[%emt 0:03:19]} Rfe8 {[%emt 0:03:31]} ({Avoid the trap} 16... Qxb2 $2 17. Rb1 $18) 17. Rfd1 {[%emt 0:06:58]} Nf8 {[%emt 0:11:51]} ({Don't go for} 17... Qxb2 $2 18. Rb1 $18) 18. Bf5 {[%emt 0:04:17]} Rb8 {[%emt 0:07:50]} 19. Qa4 {[%emt 0:03:03]} g6 {[%emt 0:02:12]} 20. Bb1 {[%emt 0:03:19]} N8d7 {[%emt 0:05:19]} ({Much worse is} 20... Qxb2 $6 21. Nb3 $14) 21. b3 {[%emt 0:02:28]} a5 {[%emt 0:03:17]} 22. Qh4 {[%emt 0:03:19]} Qb4 {[%emt 0:05:40]} 23. Qh6 {[%emt 0:04:18]} Ba6 {[%emt 0:02:02]} 24. Ng5 $2 {[%emt 0:01:55]} (24. e4 $11 {and White has nothing to worry.}) 24... Be2 {[%emt 0:06:18]} 25. a3 {[%emt 0:04:24]} Qxa3 {[%emt 0:00:15]} 26. Re1 {[%emt 0:00:05]} Ba6 {[%emt 0:09:01]} 27. e4 {[%emt 0:05:53]} Qb4 {[%emt 0:00:23]} 28. Rcd1 {[%emt 0:00:55]} Nf8 {[%emt 0:01:09]} 29. f3 {[%emt 0:01:21]} c4 {[%emt 0:11:51]} 30. e5 {[%emt 0:01:48]} Nh5 {[%emt 0:06:43]} 31. e6 {[%emt 0:02:32]} f5 {[%emt 0:00:59]} 32. Nxh7 {[%emt 0:03:38]} Qb6+ {[%emt 0:02:41]} ({Wrong is} 32... cxb3 $2 33. Nxf8 Rxf8 34. e7 $18 (34. Qxg6+ Ng7 $18)) 33. Kh2 $11 {[%emt 0:01:01]} Rxe6 {[%emt 0:03:04]} 34. Bxf5 {[%emt 0:01:14]} gxf5 {[%emt 0:01:40]} 35. Rxe6 {[%emt 0:00:32]} Qxe6 {[%emt 0:00:12]} 36. Qxh5 {[%emt 0:00:38]} Nxh7 {[%emt 0:00:06]} 37. f4 {[%emt 0:00:30]} Kg7 {[%emt 0:00:39]} 38. Nf3 {[%emt 0:00:23]} Qh6 {[%emt 0:02:17]} 39. Qxh6+ {[%emt 0:00:08]} Kxh6 {[%emt 0:00:04]} 40. Rxd5 {[%emt 0:00:06]} cxb3 {[%emt 0:00:59]} 41. Rd6+ {[%emt 0:00:13]} Kg7 {[%emt 0:00:48]} 42. Rxa6 {[%emt 0:01:38]} b2 {[%emt 0:00:05]} 43. Ra7+ {[%emt 0:00:16]} Kg8 {[%emt 0:00:44]} 44. Nd2 {[%emt 0:00:11]} Rd8 {[%emt 0:00:11]} 45. Nb1 {[%emt 0:00:32]} Rd1 {[%emt 0:01:07]} 46. Na3 {[%emt 0:00:58]} Nf6 {[%emt 0:00:23]} 0-1